Cogmind - Beta 13 @@@ ROGUE MODE // 2024.05.22 @ 12:56:54 Player: youngster Result: Self-destructed Performance ------------- Evolutions (1) 500 Regions Visited (3) 600 Robots Destroyed (56) 280 Value Destroyed (1372) 1372 Prototype IDs (0) 0 Alien Tech Used (0) 0 Bonus (0) 0 TOTAL SCORE: 2752 Bonus ------- None Cogmind --------- Core Integrity 142/400 Matter 223/300 Energy 265/265 System Corruption 12% Temperature Cool (0) Movement Rolling (195) Ox7 Location -9/Materials Parts ------- > --- POWER (1) -------- Improved Ion Engine > --- PROPULSION (2) --- Light Treads Armored Wheel > --- UTILITY (4) ------ Huge Storage Unit Seismic Detector Utility Shielding > --- WEAPON (2) ------- Light Assault Rifle Heavy Assault Rifle > --- INVENTORY (25) --- Light Treads Light Treads Light Treads Light Treads Light Treads Light Treads Light Treads Wheel Cooling System Large Storage Unit High-capacity Matter Pod (200) EM Pulse Gun Light EM Pulse Cannon Light Assault Rifle Light Assault Rifle Light Assault Rifle Light Assault Rifle Light Assault Rifle Heavy Assault Rifle Rocket Launcher Rocket Launcher Rocket Launcher Datajack Peak State ------------ > --- POWER ------------ Improved Ion Engine > --- PROPULSION ------- Light Treads Compact Wheel > --- UTILITY ---------- Huge Storage Unit Improved Terrain Scanner Seismic Detector Medium Armor Plating > --- WEAPON ----------- Heavy Assault Rifle Makeshift Axe > --- INVENTORY -------- Improved Ion Engine Light Treads Light Treads Light Treads Light Treads Wheel Large Storage Unit High-capacity Matter Pod Improved Targeting Computer EM Pulse Gun Light EM Pulse Cannon Light Assault Rifle Light Assault Rifle Light Assault Rifle Light Assault Rifle Light Assault Rifle Light Assault Rifle Light Assault Rifle Heavy Assault Rifle Datajack Mining Laser [Rating: 19] Favorites ----------- Power Ion Engine Engine Ion Engine Propulsion Light Treads Treads Light Treads Wheel Wheel Utility Seismic Detector Device Seismic Detector Storage Huge Storage Unit Processor Improved Targeting Computer Protection Medium Armor Plating Weapon Light Assault Rifle Energy Gun EM Pulse Gun Ballistic Gun Light Assault Rifle Launcher Rocket Launcher Slashing Weapon Makeshift Axe Build | -11 -10 -10 -9 ------- Run | Yrd Mat Min Mat Slots Evolved 2 | . . . 2 Power . | . . . . Propulsion . | . . . . Utility 2 | . . . 2 Weapon . | . . . . Parts Attached 94 | 7 15 7 65 Power 6 | 1 . . 5 Engine 6 | 1 . . 5 Core . | . . . . Reactor . | . . . . Propulsion 28 | 2 2 1 23 Treads 18 | 2 2 1 13 Leg . | . . . . Wheel 10 | . . . 10 Hover . | . . . . Flight . | . . . . Utility 36 | 2 12 1 21 Device 29 | 1 11 1 16 Storage 3 | 1 1 . 1 Processor 1 | . . . 1 Hackware . | . . . . Protection 3 | . . . 3 Artifact . | . . . . Weapon 24 | 2 1 5 16 Energy Gun 2 | . . 2 . Energy Cannon . | . . . . Ballistic Gun 18 | 2 1 3 12 Ballistic Cannon . | . . . . Launcher 1 | . . . 1 Special Weapon . | . . . . Impact Weapon . | . . . . Slashing Weapon 3 | . . . 3 Piercing Weapon . | . . . . Special Melee Weapon . | . . . . Unidentified Prototypes . | . . . . Parts Lost 12 | . 2 . 10 Power 2 | . . . 2 Propulsion . | . . . . Utility 5 | . 1 . 4 Weapon 5 | . 1 . 4 Highest Loss Streak 3 | . 2 . 3 To Critical Strikes 1 | . . . 1 Average Slot Usage (%) 95 | . 99 100 92 Engine 12 | . 14 14 10 Treads 19 | . 28 28 13 Wheel 4 | . . . 8 Device 15 | . 13 14 16 Storage 12 | . 14 14 11 Processor 2 | . . . 4 Protection 3 | . . . 6 Ballistic Gun 22 | . 28 25 19 Slashing Weapon 1 | . . . 1 Naked Turns . | . . . . Heaviest Build 102 | 14 28 30 102 Greatest Support 40 | 40 40 40 40 Greatest Overweight (x) 10 | . 1 . 10 Average Overweight (x) 2 | . . . 7 Largest Inventory Capacity 25 | 8 15 15 25 Average Capacity 18 | 7 10 15 24 Most Carried 25 | 5 10 15 25 Average Carried 15 | 2 8 14 21 Final Capacity 25 | 8 15 15 25 Final Carried 23 | 5 10 15 23 Class Distribution -------------------- 56% | Mutant 43% | Scavenger-Mutant Dominant Class ---------------- Mutant | -10/Materials Mutant | -10/Mines Scavenger-Mutant | -9/Materials Resources | -11 -10 -10 -9 ----------- Run | Yrd Mat Min Mat Matter Collected 1835 | 327 519 92 897 Remotely . | . . . . Salvage Created 2068 | 117 666 156 1129 Parts 129 | 5 44 13 67 Haulers Intercepted 3 | . 2 . 1 Recyclers Shooed 4 | . 2 . 2 Parts Field Recycled . | . . . . Retrieved Matter . | . . . . Parts Self-Destructed . | . . . . Prevented . | . . . . Kills | -11 -10 -10 -9 ------- Run | Yrd Mat Min Mat Combat Hostiles Destroyed 41 | . 14 7 20 Melee 3 | . 1 . 2 Guns 37 | . 13 6 18 AOE 1 | . . 1 . Classes Destroyed 9 | 3 4 . 2 Worker 2 | 1 . . 1 Tunneler 3 | 2 . . 1 Hauler 3 | . 2 . 1 Recycler 6 | 1 2 . 3 Watcher 1 | . 1 . . Swarmer 11 | . 3 5 3 Grunt 22 | . 11 2 9 Brawler 1 | . . . 1 Sentry 7 | . . . 7 Best Kill Streak 4 | 2 4 3 4 Combat Bots Only 4 | . 4 3 3 Max Kills in Single Turn 2 | 1 1 2 1 Gunslinging 1 | . . 1 . Exploded 1 | . . 1 . Melee 1 | . 1 . 1 Uniques/NPCs Destroyed . | . . . . Combat | -11 -10 -10 -9 -------- Run | Yrd Mat Min Mat Hostile Shots Fired 198 | . 42 28 128 Missed 45 | . 10 8 27 Damage Taken 2222 | . 407 173 1642 Core 368 | . 59 51 258 Absorbed by Shields . | . . . . Redirected to Shielding 17 | . . . 17 Regen/Repaired (Parts) 239 | . . . 239 Core Remaining (%) 78 | 100 . 56 . Volleys Fired 177 | 19 57 15 86 Largest 2 | 2 2 2 2 Hottest 80 | 40 40 80 46 Shots Fired 349 | 38 114 27 170 Gun 348 | 38 114 27 169 Cannon . | . . . . Launcher 1 | . . . 1 Special . | . . . . Kinetic 341 | 38 114 20 169 Thermal . | . . . . Explosive 1 | . . . 1 Electromagnetic 7 | . . 7 . Robot Hit Streak 35 | 6 12 4 35 Robot Miss Streak 4 | 4 2 2 4 Penetration Max . | . . . . Secondary Targets 4 | . 1 1 2 Max Gunslinging Chain 1 | . 1 1 1 Shots Hit Robots 241 | 21 77 14 129 Core Hits 97 | 7 34 11 45 Critical Kills 2 | . 2 . . Critical Parts Destroyed 3 | . 1 . 2 Critical Strikes 6 | . 3 . 3 Destroy 5 | . 3 . 2 Sever 1 | . . . 1 Melee Attacks 19 | . . . 19 Impact . | . . . . Slashing 19 | . . . 19 Piercing . | . . . . Sneak Attacks . | . . . . Combat Hostiles . | . . . . Follow-up Attacks . | . . . . Damage Inflicted 2788 | 254 714 187 1633 Guns 2573 | 254 700 124 1495 Cannons . | . . . . Explosions 57 | . . 57 . Melee 138 | . . . 138 Ramming 20 | . 14 6 . Kinetic 2546 | 254 700 97 1495 Thermal 57 | . . 57 . Explosive . | . . . . Electromagnetic 27 | . . 27 . Impact . | . . . . Slashing 138 | . . . 138 Piercing . | . . . . Highest Corruption 12 | . . . 12 Average Corruption 3 | . . . 3 Corruption Purged . | . . . . Corruption Blocked . | . . . . Effects 19 | . . . 19 Message Errors 6 | . . . 6 Matter Fused 3 | . . . 3 Heat Flow Errors 5 | . . . 5 Energy Discharges 2 | . . . 2 Data Loss (minor) 2 | . . . 2 Misdirections 1 | . . . 1 Overload Shots . | . . . . Overflow Damage . | . . . . Projectiles . | . . . . Explosions . | . . . . Melee . | . . . . Knockbacks . | . . . . Impact . | . . . . Kinetic . | . . . . Secondary . | . . . . Self-Inflicted Damage 43 | . . . 43 Shots 1 | . . . 1 Rammed 6 | . 4 2 . Targets Rammed 7 | . 5 2 . Kicked . | . . . . Crushed 1 | . 1 . . Highest Temperature 266 | . 12 45 266 Average Temperature 51 | . 7 23 60 Received Heat Transfer 678 | . 138 9 531 Siege Activations . | . . . . Robots Corrupted . | . . . . Combat Hostiles . | . . . . Parts Fried . | . . . . Impact Corruptions . | . . . . Robots Melted . | . . . . Combat Hostiles . | . . . . Parts Melted . | . . . . Heat Transferred 100 | . . 100 . Parts Sabotaged . | . . . . Parts Stolen . | . . . . Parts Stripped . | . . . . Power Chain Reactions . | . . . . Alert | -11 -10 -10 -9 ------- Run | Yrd Mat Min Mat Peak Influence 307 | 20 307 95 243 Initial 37 | . 13 28 37 Average 107 | 6 171 49 103 Maximum Alert Level 1 | . 1 . 1 Low Security (%) 89 | 100 67 100 94 Level 1 10 | . 32 . 5 Level 2 . | . . . . Level 3 . | . . . . Level 4 . | . . . . Level 5 . | . . . . High Security . | . . . . Max Security . | . . . . Squads Dispatched 6 | . 5 . 1 Investigation 4 | . 4 . . Extermination . | . . . . Reinforcement 2 | . 1 . 1 Assault . | . . . . Garrison . | . . . . Intercept . | . . . . Searches Triggered . | . . . . Construction Impeded . | . . . . Haulers Reinforced . | . . . . Active Scanning Responses . | . . . . Cargo Convoy Interrupts . | . . . . Stealth | -11 -10 -10 -9 --------- Run | Yrd Mat Min Mat Distress Signals 6 | . 3 . 3 Communications Jammed . | . . . . Distress Signals . | . . . . Times Spotted 66 | . 23 7 36 Peak Tracking Total 4 | . 4 3 4 Tactical Retreats 2 | . . . 2 Traps | -11 -10 -10 -9 ------- Run | Yrd Mat Min Mat Traps Triggered 2 | . 2 . . Indirectly . | . . . . Trap Hack Attempts . | . . . . Triggered . | . . . . Disarmed . | . . . . Reprogrammed . | . . . . Reused . | . . . . Traps Extracted . | . . . . Installed . | . . . . Triggered . | . . . . Machines | -11 -10 -10 -9 ---------- Run | Yrd Mat Min Mat Machines Disabled 3 | . . 2 1 Max in Single Turn 2 | . . 2 1 Machines Repaired . | . . . . Machines Dismantled . | . . . . Machines Sabotaged . | . . . . Overloaded Fab Kills . | . . . . Hacking | -11 -10 -10 -9 --------- Run | Yrd Mat Min Mat Machines Accessed 16 | . 8 . 8 Terminals 13 | . 6 . 7 Fabricators . | . . . . Repair Stations 1 | . . . 1 Recycling Units 2 | . 2 . . Scanalyzers . | . . . . Garrison Access . | . . . . Total Hacks 44 | . 25 . 19 Successful 20 | . 10 . 10 Failed 24 | . 15 . 9 Catastrophic 5 | . 4 . 1 Database Lockouts . | . . . . Manual 33 | . 24 . 9 Terminals 37 | . 22 . 15 Fabricators . | . . . . Repair Stations 4 | . . . 4 Recycling Units 3 | . 3 . . Scanalyzers . | . . . . Garrison Access . | . . . . Terminal Hacks 9 | . 6 . 3 Part Schematic 1 | . 1 . . Robot Schematic 1 | . 1 . . Robot Analysis 2 | . 2 . . Terminal Index 2 | . 1 . 1 Alert Level 1 | . . . 1 Locate Traps 1 | . 1 . . Hauler Manifests 1 | . . . 1 Fabricator Hacks . | . . . . Repair Station Hacks 4 | . . . 4 Scan Component 2 | . . . 2 Repair 2 | . . . 2 Recycling Unit Hacks . | . . . . Scanalyzer . | . . . . Garrison Access Hacks . | . . . . Unauthorized Hacks 7 | . 4 . 3 Terminals 5 | . 2 . 3 Botnet 3 | . 1 . 2 Operators 2 | . 1 . 1 Fabricators . | . . . . Repair Stations . | . . . . Recycling Units 2 | . 2 . . Tunnel 2 | . 2 . . Scanalyzers . | . . . . Garrison Access . | . . . . Data Cores Recovered . | . . . . Used . | . . . . Hacking Detections 15 | . 7 . 8 Full Trace Events 1 | . 1 . . Feedback Events . | . . . . Feedback Blocked . | . . . . Robot Schematics Acquired 1 | . 1 . . Robots Built . | . . . . Authchips . | . . . . Time . | . . . . Total Robot Build Rating . | . . . . Part Schematics Acquired 1 | . 1 . . Parts Built . | . . . . Authchips . | . . . . Time . | . . . . Total Part Build Rating . | . . . . Parts Repaired 2 | . . . 2 Time 52 | . . . 52 Parts Recycled . | . . . . Recycled Matter . | . . . . Retrieved Matter . | . . . . Retrieved Components . | . . . . Parts Scanalyzed . | . . . . Part Schematics Acquired . | . . . . Parts Damaged . | . . . . Bothacking | -11 -10 -10 -9 ------------ Run | Yrd Mat Min Mat Used RIF Installer . | . . . . Robots Hacked . | . . . . Non-combat . | . . . . Combat . | . . . . Robot Hacks Applied . | . . . . Relay Couplers Released . | . . . . Fabnet Peak Effective % . | . . . . Robots Rewired . | . . . . Allies Hacked . | . . . . Hacks Repelled . | . . . . Allies | -11 -10 -10 -9 -------- Run | Yrd Mat Min Mat Total Allies . | . . . . Largest Group . | . . . . Highest-Rated Group . | . . . . Highest-Rated Ally . | . . . . Total Orders . | . . . . Ally Attacks . | . . . . Total Damage . | . . . . Kills . | . . . . Allies Corrupted . | . . . . Allies Melted . | . . . . Intel | -11 -10 -10 -9 ------- Run | Yrd Mat Min Mat Robot Analysis Total 2 | . 2 . . Derelict Logs Recovered 2 | . . 2 . Drone Launches . | . . . . Drone Recoveries . | . . . . Exploration | -11 -10 -10 -9 ------------- Run | Yrd Mat Min Mat Turns Passed 4893 | 147 1215 942 2589 Spaces Moved 2134 | 54 628 555 897 Core 6 | 6 . . . Treads 1336 | 48 628 555 105 Legs . | . . . . Wheels 792 | . . . 792 Hover . | . . . . Flight . | . . . . Fastest Speed 50 | 50 160 160 160 Average Speed 178 | 147 160 160 205 Slowest Speed 320 | 160 240 160 320 Overloaded Moves . | . . . . Propulsion Burnouts . | . . . . Robots Hopped . | . . . . Cave-ins Triggered 1 | . . . 1 Exploration Rate (%) 63 | 5 95 96 56 Regions Visited 3 Branch Regions 1 Pre-discovered Areas 2 | . 2 . . Known Exits Taken . | . . . . Unknown Exits Taken 3 | 1 1 1 . Scrap Searched 1 | . . 1 . Spaces Dug 22 | . . . 22 Terrain Destroyed 40 | . . 18 22 Melee 8 | . . . 8 Projectile . | . . . . AOE 32 | . . 18 14 Terrain Rammed . | . . . . Walls Destroyed . | . . . . Machines Disabled . | . . . . Actions | -11 -10 -10 -9 --------- Run | Yrd Mat Min Mat Total 2859 | 84 734 581 1460 Wait 376 | . 17 1 358 Move 2131 | 53 627 554 897 Hop . | . . . . Pick Up 29 | 5 8 2 14 Fast Attach 14 | 7 3 . 4 Attach 18 | . 2 . 16 Detach 10 | . 1 . 9 Swap 62 | . 10 7 45 Drop 16 | . 4 . 12 Fire 177 | 19 57 15 86 Melee 19 | . . . 19 Ram . | . . . . Kick . | . . . . Crush 7 | . 5 2 . Escape Stasis . | . . . . Rewire . | . . . . Trap . | . . . . Miscellaneous . | . . . . Route ------- -11/Scrapyard -10/Materials (discovered 4 exits: *Mat x3 / [*Min]) -10/Mines (discovered 2 exits: *Mat x2) -9/Materials (discovered 2 exits: [*Mat] / [*Min]) History --------- Turn | Location | Event 8 | -11/Scrapyard | Discovered new exit (range 15) 148 | -11/Scrapyard | Entered Materials 302 | -10/Materials | Build established: Mutant 488 | -10/Materials | Discovered new exit (range 16) 711 | -10/Materials | Discovered new exit (range 10) 858 | -10/Materials | Discovered new exit (range 11) 976 | -10/Materials | Discovered new exit (range 16) 1363 | -10/Materials | Entered Mines 1423 | -10/Mines | Learned Materials trap positions 1429 | -10/Mines | A weapon hastily lodged in a ceiling crevice suddenly fell to the ground 1469 | -10/Mines | Learned Materials trap positions 1715 | -10/Mines | Discovered new exit (range 15) 2134 | -10/Mines | Discovered new exit (range 6) 2305 | -10/Mines | Entered Materials 2305 | -9/Materials | Evolved 2 slots: Utility x2 2306 | -9/Materials | Loaded intel: 18 trap records 2744 | -9/Materials | Build established: Scavenger-Mutant 2876 | -9/Materials | Discovered new exit (range 15) 3868 | -9/Materials | Repaired Lgt. Treads 3924 | -9/Materials | Repaired Lgt. Treads 4023 | -9/Materials | Core integrity fell below 50% 4188 | -9/Materials | Discovered new exit (range 16) 4772 | -9/Materials | Crushed by falling debris 4772 | -9/Materials | System corruption reached 10% 4803 | -9/Materials | Lost 3 parts (1p1u1w) 4894 | -9/Materials | Self-destructed Last Messages --------------- 04654_ LCCRIYYR2NOYOQBE8XCS28D0 KVM 2#TN 04663_ Acquired 54 matter. 04669_ ELP=AUE =Q#=ZKXHC9#XM 04694_ UHXCRGLWJ#O#1XUPFS93<72LYCQYKHL3Y 04729_ System corrupted: Heat flow error (+288). 04750_ 5CM&IA,WE05NBC6VZTMSKV%